{"text_format":"1","workbook":"xlsx","n_sheets":22,"sheets":["Данные","1. Смета","1.1. Доп.работы","1.2. Отказ от работ","Лист5","ВЗП","Прихожая","Коридор","Кухня","Ванная","Туалет","Комната 1","Комната 2","Комната 3","Комната 4","Комната 5","Комната 6","Комната 7","Комната 8","Комната 9","Туалет1","Ванная1"],"not_rendered":{"charts":0,"images":0,"macros":1,"external_links":0,"defined_names":0,"comments":1,"pivot_tables":0},"unopened":[],"bounds":{"document_bytes":16777216,"sheet_cells":100000,"rows_first":2000,"rows_last":500,"rows_between":2000,"halvings":0,"cell_chars":16384,"cell_head_chars":4096},"cells_cut":0,"cells_raw":0,"read":"whole","date_system":"1900"}

{"sheet":"Данные","index":0,"n_rows":13,"n_cols":2,"rows_kept":13,"cut":false,"hidden":false,"merged":[[1,0,1,1],[12,0,14,2]]}
[]
["Данные клиента"]
["ФИО"]
["Паспорт"," "]
["Телефон"]
["Адрес"]
["№ договора "]
["Дата заключения"," "]
["Характеристики объекта"," "]
["ФИО менеджера"]
["Производитель работ:"]
[]
["ВАЖНО! После подписания договора и сметы с клиентом в обязательном порядке необходимо разъяснить положение: \"О коммерческой тайне  ООО \"Смарт ПРО\"\". Клиенту нужно сообщить о невозможности передачи информации и условий настоящей сметы третьим лицам, прежде всего мастерам!"]

{"sheet":"1. Смета","index":1,"n_rows":9,"n_cols":24,"rows_kept":9,"cut":false,"hidden":false,"merged":[[1,4,2,4],[7,2,7,3],[4,2,4,3],[5,2,5,3],[6,2,6,3],[3,2,3,3]]}
[]
[null,null,null,null,{"$f":"\"Приложение 1 к  Договору № \"&Данные!$B$7","v":"Приложение 1 к  Договору № "},"Длина",5,0,0,0,0,0,0,0,0,0,0,0,0,0,0,0,null,"Длина"]
[null,null,null,null,null,"Ширина",4,0,0,0,0,0,0,0,0,0,0,0,0,0,0,0,null,"Ширина"]
[null,null,"МЕНЕДЖЕР   ",null,{"$f":"Данные!B10","v":0},"Высота",2.5,2.5,2.5,2.5,2.5,2.5,2.5,2.5,2.5,2.5,2.5,2.5,2.5,2.5,2.5,2.5,null,"Высота"]
[null,null,"ПОДРЯДЧИК   ",null,{"$f":"Данные!B11","v":0},"Проемы",0,0,0,0,0,0,0,0,0,0,0,0,0,0,0,0,null,"Проемы"]
[null,null,"ЗАКАЗЧИК   ",null,{"$f":"Данные!B3","v":0},"Периметр",{"$f":"ROUND(G2*2+G3*2,2)","v":18},{"$f":"ROUND(H2*2+H3*2,2)","v":0},0,0,0,0,0,0,0,0,0,0,0,0,0,0,{"$f":"SUM(G6:V6,2)","v":20},"Периметр"]
[null,null,"ТЕЛЕФОН   ",null,{"$f":"Данные!B5","v":0},"S пола",{"$f":"ROUND(G2*G3,2)","v":20},{"$f":"ROUND(H2*H3,2)","v":0},0,0,0,0,0,0,0,0,0,0,0,0,0,0,{"$f":"SUM(G7:V7,2)","v":22},"S пола"]
[null,null,"АДРЕС   ",null,{"$f":"Данные!B6","v":0},"S стен",{"$f":"ROUND(G6*G4-G5,2)","v":45},{"$f":"ROUND(H6*H4-H5,2)","v":0},0,0,0,0,0,0,0,0,0,0,0,0,0,0,47,"S стен"]
[null,"№","ЭТАП","ОБЪЕКТ","Наименование работ","Ед.изм","Прихожая","Коридор","Кухня","Ванная","Туалет","Комната 1","Комната 2","Комната 3","Комната 4","Комната 5","Комната 6","Комната 7","Комната 8","Комната 9","Туалет1","Ванная1","Общий объем"]

{"sheet":"1.1. Доп.работы","index":2,"n_rows":0,"n_cols":0,"rows_kept":0,"cut":false,"hidden":false,"merged":[]}

{"sheet":"1.2. Отказ от работ","index":3,"n_rows":0,"n_cols":0,"rows_kept":0,"cut":false,"hidden":false,"merged":[]}

{"sheet":"Лист5","index":4,"n_rows":0,"n_cols":0,"rows_kept":0,"cut":false,"hidden":false,"merged":[]}

{"sheet":"ВЗП","index":5,"n_rows":0,"n_cols":0,"rows_kept":0,"cut":false,"hidden":false,"merged":[]}

{"sheet":"Прихожая","index":6,"n_rows":0,"n_cols":0,"rows_kept":0,"cut":false,"hidden":false,"merged":[]}

{"sheet":"Коридор","index":7,"n_rows":0,"n_cols":0,"rows_kept":0,"cut":false,"hidden":false,"merged":[]}

{"sheet":"Кухня","index":8,"n_rows":0,"n_cols":0,"rows_kept":0,"cut":false,"hidden":false,"merged":[]}

{"sheet":"Ванная","index":9,"n_rows":0,"n_cols":0,"rows_kept":0,"cut":false,"hidden":false,"merged":[]}

{"sheet":"Туалет","index":10,"n_rows":0,"n_cols":0,"rows_kept":0,"cut":false,"hidden":false,"merged":[]}

{"sheet":"Комната 1","index":11,"n_rows":0,"n_cols":0,"rows_kept":0,"cut":false,"hidden":false,"merged":[]}

{"sheet":"Комната 2","index":12,"n_rows":0,"n_cols":0,"rows_kept":0,"cut":false,"hidden":false,"merged":[]}

{"sheet":"Комната 3","index":13,"n_rows":0,"n_cols":0,"rows_kept":0,"cut":false,"hidden":false,"merged":[]}

{"sheet":"Комната 4","index":14,"n_rows":0,"n_cols":0,"rows_kept":0,"cut":false,"hidden":false,"merged":[]}

{"sheet":"Комната 5","index":15,"n_rows":0,"n_cols":0,"rows_kept":0,"cut":false,"hidden":false,"merged":[]}

{"sheet":"Комната 6","index":16,"n_rows":0,"n_cols":0,"rows_kept":0,"cut":false,"hidden":false,"merged":[]}

{"sheet":"Комната 7","index":17,"n_rows":0,"n_cols":0,"rows_kept":0,"cut":false,"hidden":false,"merged":[]}

{"sheet":"Комната 8","index":18,"n_rows":0,"n_cols":0,"rows_kept":0,"cut":false,"hidden":false,"merged":[]}

{"sheet":"Комната 9","index":19,"n_rows":0,"n_cols":0,"rows_kept":0,"cut":false,"hidden":false,"merged":[]}

{"sheet":"Туалет1","index":20,"n_rows":0,"n_cols":0,"rows_kept":0,"cut":false,"hidden":false,"merged":[]}

{"sheet":"Ванная1","index":21,"n_rows":0,"n_cols":0,"rows_kept":0,"cut":false,"hidden":false,"merged":[]}